bitfinex/quotes_BTCUSD_20251113
["timestamp","ask_amount","ask_price","bid_price","bid_amount"]
[1763011984538,0.421407,102390.0,102380.0,0.28348944]
[1763011984744,0.0117,102390.0,102380.0,0.28348944]
[1763011984953,0.0117,102390.0,102380.0,0.28448944]
[1763011985631,0.20703157,102390.0,102380.0,0.08913879]
[1763011985833,0.20703157,102390.0,102380.0,0.23942944]
[1763011985834,0.63453857,102390.0,102380.0,0.23942944]
[1763011986042,0.63453857,102390.0,102380.0,0.24042944]
[1763011986238,0.421407,102390.0,102380.0,0.25742944]
[1763011986441,0.409707,102400.0,102390.0,0.19533157]
[1763011986678,0.20622342,102410.0,102390.0,0.9253078]
[1763011986842,0.20622342,102410.0,102400.0,0.1953125]
[1763011987304,0.01093,102410.0,102400.0,0.24165761]
[1763011987512,0.01093,102410.0,102400.0,0.26971761]
[1763011987717,0.91892055,102420.0,102410.0,0.19529342]
[1763011987942,0.41892055,102420.0,102410.0,0.24035342]
[1763011988156,0.00921355,102420.0,102410.0,0.24035342]
[1763011988536,0.20448791,102420.0,102410.0,0.24035342]
[1763011988713,0.20448791,102420.0,102410.0,0.3381625]
[1763011988714,0.00921355,102420.0,102410.0,0.3381625]
[1763011989097,0.00071355,102420.0,102410.0,0.36750365]
[1763011990268,0.00171355,102420.0,102410.0,0.9405408]
[1763011990690,0.00071355,102420.0,102410.0,0.36750365]
[1763011993947,0.00071355,102420.0,102410.0,0.9405408]
[1763011994331,0.04461355,102420.0,102410.0,0.32244365]
[1763011994569,0.01851355,102420.0,102410.0,0.32244365]
[1763011994740,0.21378791,102420.0,102410.0,0.32244365]
[1763011995072,0.00071355,102420.0,102410.0,0.36750365]
[1763011995617,0.00071355,102420.0,102410.0,0.9405408]
[1763011998692,0.00071355,102420.0,102410.0,0.9497408]
[1763012003178,0.00071355,102420.0,102410.0,1.09671002]
[1763012005252,0.00071355,102420.0,102410.0,0.37670365]
[1763012005450,0.00071355,102420.0,102410.0,1.09671002]
[1763012008040,0.00071355,102420.0,102410.0,1.46312876]
[1763012008276,0.01151,102460.0,102450.0,0.19521717]
[1763012008277,1.11641512,102460.0,102450.0,0.19521717]
[1763012008494,0.93955195,102460.0,102450.0,0.20778717]
[1763012008700,0.95735195,102460.0,102450.0,0.20778717]
[1763012008911,0.98443751,102460.0,102440.0,0.23584964]
[1763012009113,0.19521717,102450.0,102440.0,0.26518138]
[1763012009292,0.19521717,102450.0,102440.0,0.36299046]
[1763012009526,0.20652717,102450.0,102440.0,0.13971082]
[1763012009728,0.20652717,102450.0,102440.0,0.35158705]
[1763012010530,0.01131,102450.0,102440.0,0.37703705]
[1763012011309,0.409707,102450.0,102440.0,0.37703705]
[1763012011912,0.19521717,102450.0,102440.0,0.37703705]
[1763012012093,0.20652717,102450.0,102440.0,0.37703705]
[1763012012290,0.20652717,102450.0,102440.0,0.25377797]
[1763012012495,0.24810717,102450.0,102440.0,0.02933174]
[1763012012747,0.65781417,102450.0,102440.0,0.02933174]
[1763012013468,0.98081417,102450.0,102440.0,0.02933174]
[1763012013671,0.19523623,102440.0,102430.0,0.31686502]
[1763012013823,0.20184623,102440.0,102430.0,0.3461988]
[1763012015248,0.20184623,102440.0,102430.0,0.14121286]
[1763012015421,0.60494323,102440.0,102430.0,0.35310815]
[1763012015648,0.19523623,102440.0,102430.0,0.35310815]
[1763012016178,0.64652323,102440.0,102430.0,0.02933378]
[1763012016380,0.60496229,102430.0,102420.0,0.19527436]
[1763012016585,0.65505229,102430.0,102420.0,0.02933831]
[1763012016823,0.65505229,102430.0,102420.0,0.22461267]
[1763012017230,0.63009229,102430.0,102420.0,0.22461267]
[1763012022038,0.418217,102430.0,102420.0,0.27917267]
[1763012022291,0.409707,102430.0,102420.0,0.27917267]
[1763012022472,0.40995346,102430.0,102420.0,0.27917267]
[1763012023300,0.00024646,102430.0,102420.0,0.99917904]
[1763012024909,0.00024646,102430.0,102420.0,0.78311173]
[1763012027456,0.00024646,102430.0,102420.0,0.27917267]
[1763012027754,0.00024646,102430.0,102420.0,0.78311173]
[1763012027960,0.00024646,102430.0,102420.0,0.27917267]
[1763012028272,0.00024646,102430.0,102420.0,0.78311173]
[1763012029606,0.00024646,102430.0,102420.0,0.05844831]
[1763012029844,0.45153346,102430.0,102420.0,0.22461267]
[1763012030039,0.64678875,102430.0,102420.0,0.22461267]
[1763012030368,0.45153346,102430.0,102420.0,0.22461267]
[1763012030568,0.40995346,102430.0,102420.0,0.87652081]
[1763012030769,0.00024646,102430.0,102420.0,0.87652081]
[1763012031222,0.00024646,102430.0,102420.0,0.27477267]
[1763012031425,0.19550175,102430.0,102420.0,0.27477267]
[1763012031743,0.19550175,102430.0,102420.0,0.24932267]
[1763012031942,0.19550175,102430.0,102420.0,0.34713175]
[1763012032169,0.00024646,102430.0,102420.0,0.34713175]
[1763012032346,0.00024646,102430.0,102420.0,0.37258175]
[1763012032897,0.21212175,102430.0,102420.0,0.31802175]
[1763012033298,0.23708175,102430.0,102420.0,0.31802175]
[1763012034776,0.23708175,102430.0,102420.0,0.02493831]
[1763012035497,0.23708175,102430.0,102420.0,0.22021267]
[1763012037599,0.23708175,102430.0,102420.0,0.02493831]
[1763012037984,0.23708175,102430.0,102410.0,0.33261618]
[1763012038188,0.01221,102420.0,102410.0,0.36195469]
[1763012038522,0.65877136,102420.0,102410.0,0.33650469]
[1763012038728,0.65877136,102420.0,102410.0,0.32243469]
[1763012039327,0.63381136,102420.0,102410.0,0.35154469]
[1763012039704,0.63381136,102420.0,102410.0,0.33590469]
[1763012040710,0.66098136,102420.0,102410.0,0.33590469]
[1763012041396,0.66098136,102420.0,102410.0,0.33690469]
[1763012041590,0.438537,102420.0,102410.0,0.33690469]
[1763012041979,0.00024646,102430.0,102420.0,0.19527436]
[1763012042181,0.00024646,102430.0,102420.0,0.75667342]
[1763012042813,0.19550175,102430.0,102420.0,0.28207233]
[1763012043012,0.25224175,102430.0,102420.0,0.22461233]
[1763012043298,0.02981646,102430.0,102420.0,0.23815233]
[1763012044092,0.01245646,102430.0,102420.0,0.28179233]
[1763012044431,0.00024646,102430.0,102420.0,1.28967045]
[1763012045274,0.00024646,102430.0,102420.0,0.78573139]
[1763012045892,0.01188646,102430.0,102420.0,0.78573139]
[1763012046304,0.00024646,102430.0,102420.0,0.78573139]
[1763012050068,0.00024646,102430.0,102420.0,0.28179233]
[1763012050273,0.00024646,102430.0,102420.0,0.25566233]
[1763012050723,0.21370175,102430.0,102420.0,0.02933797]
[1763012050942,0.23875175,102430.0,102420.0,0.02933797]
[1763012051174,0.64845875,102430.0,102420.0,0.02933797]
[1763012051818,1.47539781,102430.0,102410.0,0.1952871]
[1763012052036,0.21347436,102420.0,102410.0,0.1952871]
[1763012052244,0.21347436,102420.0,102410.0,0.29309618]
[1763012052459,0.0182,102420.0,102410.0,0.29309618]
[1763012052670,0.0182,102420.0,102410.0,0.32243601]
[1763012053097,0.73295346,102430.0,102420.0,0.19527436]
[1763012053324,0.73295346,102430.0,102420.0,0.69921342]
[1763012053627,0.97145875,102430.0,102420.0,0.19527436]
[1763012053830,0.409707,102420.0,102410.0,0.86677507]
[1763012054039,0.409707,102420.0,102410.0,0.36283601]
[1763012054171,0.409707,102420.0,102410.0,0.38034601]
[1763012054586,0.409707,102420.0,102410.0,0.37934601]
[1763012055210,0.409707,102420.0,102410.0,0.38034601]
[1763012055583,0.409707,102420.0,102410.0,0.38134601]
[1763012056000,0.409707,102420.0,102410.0,0.88528507]
[1763012056351,0.00024646,102430.0,102420.0,0.19527436]
[1763012056575,0.00024646,102430.0,102420.0,0.25218436]
[1763012056940,0.00024646,102430.0,102420.0,0.28152256]
[1763012057420,0.00024646,102430.0,102420.0,0.78546162]
[1763012063049,0.00024646,102430.0,102420.0,0.78554273]
[1763012063428,0.00024646,102430.0,102420.0,0.28152256]
[1763012063750,0.00024646,102430.0,102420.0,0.78554273]
[1763012064719,0.00024646,102430.0,102420.0,1.2895629]
[1763012065843,0.00024646,102430.0,102420.0,1.4360629]
[1763012067826,0.00024646,102430.0,102420.0,1.83700181]
[1763012068048,0.732907,102460.0,102450.0,0.69923734]
[1763012068257,0.732907,102460.0,102450.0,0.75552734]
[1763012068258,0.00034008,102460.0,102450.0,0.75552734]
[1763012068466,0.00034008,102460.0,102450.0,1.25954751]
[1763012068642,0.00034008,102460.0,102450.0,1.28887303]
[1763012069072,0.00034008,102460.0,102450.0,1.33229177]
[1763012069277,0.00034008,102460.0,102450.0,0.42206051]
[1763012069426,0.00034008,102460.0,102450.0,1.43010085]
[1763012070036,0.00034008,102460.0,102450.0,2.25712102]
[1763012070250,0.00034008,102460.0,102450.0,1.75310085]
[1763012070859,0.00034008,102460.0,102450.0,1.31712622]
[1763012071414,0.00034008,102460.0,102450.0,1.31912622]
[1763012071635,0.00034008,102460.0,102450.0,1.32112622]
[1763012072404,0.0002,102490.0,102480.0,0.19516003]
[1763012072614,0.0002,102490.0,102480.0,0.90800482]
[1763012073064,0.0002,102490.0,102480.0,0.93731888]
[1763012073793,0.0002,102490.0,102480.0,0.98073762]
[1763012074018,0.00167784,102490.0,102480.0,0.98073762]
[1763012074402,0.00167784,102490.0,102480.0,0.93731888]
[1763012074601,0.00167784,102490.0,102480.0,0.93831888]
[1763012075161,0.00167784,102490.0,102480.0,1.08581888]
[1763012075293,0.00167784,102490.0,102480.0,1.12923762]
[1763012075706,0.00167784,102490.0,102480.0,0.98273762]
[1763012075931,0.00167784,102490.0,102480.0,1.55480333]
[1763012076147,0.00167784,102490.0,102480.0,1.87780333]
[1763012077145,6.20224968,102500.0,102480.0,1.88780332]
[1763012077343,6.20224968,102500.0,102490.0,1.24531487]
[1763012077344,5.84245376,102500.0,102490.0,1.24531487]
[1763012077543,5.84245376,102500.0,102490.0,1.22531487]
[1763012077742,5.49139127,102500.0,102490.0,0.65324916]
[1763012077970,5.33575935,102500.0,102490.0,1.22531487]
[1763012078174,5.21380956,102500.0,102490.0,1.22531487]
[1763012078370,4.93166765,102500.0,102490.0,1.19909487]
[1763012078590,4.93166765,102500.0,102490.0,1.21630487]
[1763012078733,4.93166765,102500.0,102490.0,1.21930487]
[1763012079106,4.93166765,102500.0,102490.0,1.19930489]
[1763012079326,4.93166765,102500.0,102490.0,0.64031393]
[1763012079506,4.93166765,102500.0,102490.0,1.21237964]
[1763012079909,4.93166765,102500.0,102490.0,1.1719609]
[1763012080341,4.93166765,102500.0,102490.0,1.21537964]
[1763012080722,4.93166765,102500.0,102490.0,1.20937964]
[1763012080925,4.93166765,102500.0,102490.0,1.21137964]
[1763012081126,4.93166765,102500.0,102490.0,1.21437964]
[1763012081676,4.93166765,102500.0,102490.0,1.1709609]
[1763012082070,4.93166765,102500.0,102490.0,0.8479609]
[1763012082700,4.93166765,102500.0,102490.0,0.8449609]
[1763012082905,4.93191386,102500.0,102490.0,0.8429609]
[1763012083212,4.93191386,102500.0,102490.0,0.8439609]
[1763012083416,5.12703581,102500.0,102490.0,0.03278421]
[1763012083560,5.16936581,102500.0,102490.0,0.03278421]
[1763012083779,5.16936581,102500.0,102490.0,0.02930421]
[1763012083961,5.16936581,102500.0,102490.0,0.03030421]
[1763012084165,5.16936581,102500.0,102490.0,0.001]
[1763012084340,5.16936581,102500.0,102480.0,0.22092003]
[1763012084985,5.16936581,102500.0,102480.0,0.05507704]
[1763012085201,0.22372098,102490.0,102480.0,0.02931704]
[1763012085375,0.34785006,102490.0,102470.0,0.81473754]
[1763012085582,0.15270908,102490.0,102480.0,0.19516003]
[1763012086043,0.34785006,102490.0,102470.0,0.8440573]
[1763012086343,0.04233,102480.0,102470.0,0.02931976]
[1763012086577,0.409707,102470.0,102460.0,0.23068673]
[1763012086808,0.409707,102470.0,102460.0,0.23425119]
[1763012087030,0.01131,102470.0,102460.0,0.23425119]
[1763012087257,0.02732,102470.0,102460.0,0.02932446]
[1763012087471,0.22249907,102470.0,102460.0,0.02932446]
[1763012087854,0.22148111,102480.0,102460.0,0.02932446]
[1763012087855,0.60488607,102470.0,102460.0,0.02932446]
[1763012088009,0.409707,102470.0,102460.0,0.79858822]
[1763012088217,0.409707,102470.0,102460.0,0.26949251]
[1763012088413,0.409707,102470.0,102460.0,0.26849251]
[1763012088745,0.409707,102480.0,102460.0,0.26849251]
[1763012088907,0.409707,102470.0,102460.0,0.84055822]
[1763012089107,0.409707,102480.0,102470.0,0.19517907]
[1763012089363,0.42783661,102480.0,102470.0,0.19517907]
[1763012089564,0.42783661,102480.0,102470.0,0.82270478]
[1763012089742,0.409707,102480.0,102470.0,0.82270478]
[1763012090031,0.52008608,102490.0,102480.0,0.19516003]
[1763012090245,0.53822017,102490.0,102480.0,0.21237003]
[1763012090446,0.01813409,102490.0,102480.0,0.81019574]
[1763012090719,5.34162086,102500.0,102480.0,0.81019574]
[1763012090905,0.00914,102490.0,102480.0,0.01721]
[1763012091106,0.00914,102490.0,102480.0,0.21237003]
[1763012091558,0.02728033,102490.0,102480.0,0.01721]
[1763012091762,0.02728033,102490.0,102480.0,0.20329003]
[1763012091913,5.15335603,102500.0,102490.0,0.13477291]
[1763012092114,5.56306303,102500.0,102490.0,0.13477291]
[1763012092327,5.57907303,102500.0,102490.0,0.13477291]
[1763012092651,5.38395086,102500.0,102490.0,0.32991389]
[1763012092796,5.35763086,102500.0,102490.0,0.32991389]
[1763012094045,5.38395086,102500.0,102490.0,0.32991389]
[1763012094481,5.35763086,102500.0,102490.0,0.32991389]
[1763012094665,4.93191386,102500.0,102490.0,0.37288389]
[1763012096308,4.93191386,102500.0,102490.0,0.34712389]
[1763012096528,4.93191386,102500.0,102490.0,0.37288389]
[1763012096734,4.93191386,102500.0,102490.0,0.34712389]
[1763012097640,4.93191386,102500.0,102490.0,0.37288389]
[1763012098619,4.93191386,102500.0,102490.0,0.9449496]
[1763012099235,4.93191386,102500.0,102490.0,0.37288389]
[1763012099599,4.93191386,102500.0,102490.0,0.9449496]
[1763012101212,4.93191386,102500.0,102490.0,0.37288389]
[1763012101413,5.12703581,102500.0,102490.0,0.15198291]
[1763012101628,5.15790581,102500.0,102490.0,0.13477291]
[1763012101830,5.61139281,102500.0,102490.0,0.13477291]
[1763012103546,5.34162086,102500.0,102490.0,0.36044389]
[1763012103947,5.39106171,102500.0,102490.0,0.36044389]
[1763012104329,5.39106171,102500.0,102490.0,0.32991389]
[1763012104912,5.58618366,102500.0,102490.0,0.13477291]
[1763012105845,5.63300366,102500.0,102490.0,0.13477291]
[1763012106469,5.55496366,102500.0,102490.0,0.13477291]
[1763012106679,4.95013471,102500.0,102490.0,0.9786396]
[1763012106888,5.14525666,102500.0,102490.0,0.16530291]
[1763012107088,5.14525666,102500.0,102490.0,0.36044389]
[1763012107315,4.95013471,102500.0,102490.0,0.36044389]
[1763012109214,4.95013471,102500.0,102490.0,0.40657389]
[1763012111459,4.95013471,102500.0,102490.0,0.9786396]
[1763012111793,4.95013471,102500.0,102490.0,1.0009996]
[1763012112606,4.95013471,102500.0,102490.0,0.42893389]
[1763012113862,5.24275666,102500.0,102490.0,0.15713291]
[1763012114059,5.00081471,102500.0,102490.0,0.35227389]
[1763012114469,5.24275666,102500.0,102490.0,0.35227389]
[1763012114859,5.24275666,102500.0,102490.0,0.66055033]
[1763012115080,6.6592985,102500.0,102490.0,0.13477291]
[1763012115320,5.37930171,102500.0,102490.0,0.88622131]
[1763012115551,5.35984171,102500.0,102490.0,0.73721033]
[1763012115795,5.56035366,102500.0,102490.0,0.88622131]
[1763012115982,5.36523171,102500.0,102490.0,0.38280389]
[1763012116189,4.95013471,102500.0,102490.0,0.93235131]
[1763012119512,4.95013471,102500.0,102490.0,1.03016039]
[1763012119715,4.93191386,102500.0,102490.0,1.53357781]
[1763012119914,4.93191386,102500.0,102490.0,1.56288969]
[1763012121081,4.93191386,102500.0,102490.0,0.46024577]
[1763012121402,4.93191386,102500.0,102490.0,1.03200056]
[1763012122016,4.93191386,102500.0,102490.0,1.00268868]
[1763012122227,4.93191386,102500.0,102490.0,1.00068868]
[1763012122428,4.96313386,102500.0,102490.0,0.35327389]
[1763012122636,5.15825581,102500.0,102490.0,0.35427389]
[1763012122834,5.15825581,102500.0,102490.0,0.15913291]
[1763012123081,5.20507581,102500.0,102490.0,0.13677291]
[1763012123224,5.61478281,102500.0,102490.0,0.13677291]
[1763012123436,5.63306977,102500.0,102490.0,0.13677291]
[1763012124523,5.63306977,102500.0,102490.0,0.13477291]
[1763012125556,5.61478281,102500.0,102490.0,0.13477291]
[1763012131875,5.63292281,102500.0,102490.0,0.13477291]
[1763012132887,5.63292281,102500.0,102490.0,0.32991389]
[1763012133564,5.63292281,102500.0,102490.0,0.13477291]
[1763012133707,5.63292281,102500.0,102490.0,0.32991389]
[1763012135183,5.63292281,102500.0,102490.0,0.13477291]
[1763012135561,4.93191386,102500.0,102490.0,1.14514209]
[1763012136382,4.93191386,102500.0,102490.0,0.42590389]
[1763012136583,4.93191386,102500.0,102490.0,1.14514209]
[1763012137394,4.93191386,102500.0,102490.0,1.10189209]
[1763012137961,4.93191386,102500.0,102490.0,1.14514209]
[1763012141070,4.93191386,102500.0,102490.0,1.2722638]
[1763012142833,4.93191386,102500.0,102490.0,1.64068254]
[1763012143253,4.93191386,102500.0,102490.0,1.64268254]
[1763012144332,4.20059824,102500.0,102490.0,1.66268252]
[1763012144554,4.07662162,102500.0,102490.0,1.68268252]
[1763012144787,3.99331696,102500.0,102490.0,1.69909034]
[1763012145001,3.82995333,102500.0,102490.0,1.69909034]
[1763012145210,3.82995333,102500.0,102490.0,1.66709035]
[1763012145423,3.82995333,102500.0,102490.0,1.67009035]
[1763012145828,3.82995333,102500.0,102490.0,1.66809035]
[1763012146089,3.82995333,102500.0,102490.0,1.66009036]
[1763012146312,3.82995333,102500.0,102490.0,1.67009035]
[1763012146897,3.59507957,102500.0,102490.0,1.67009035]
[1763012147102,3.59507957,102500.0,102490.0,1.66009036]
[1763012147311,3.59507957,102500.0,102490.0,1.65368253]
[1763012148885,3.59507957,102500.0,102490.0,1.64368254]
[1763012149089,3.59507957,102500.0,102490.0,1.65368253]
[1763012150905,3.59507957,102500.0,102490.0,1.79018254]
[1763012151128,3.59507957,102500.0,102490.0,1.80018253]
[1763012151547,3.58607957,102500.0,102490.0,1.80018253]
[1763012152930,3.58607957,102500.0,102490.0,1.79018254]
[1763012153852,3.58607957,102500.0,102490.0,1.80018253]
[1763012154813,3.58607957,102500.0,102490.0,1.79018254]
[1763012155214,3.58607957,102500.0,102490.0,1.80018253]
[1763012157975,3.13768765,102500.0,102490.0,1.80018253]
[1763012158183,3.02150622,102500.0,102490.0,1.80018253]
[1763012158390,2.76150215,102500.0,102490.0,1.81018252]
[1763012158593,2.76150215,102500.0,102490.0,1.84634273]
[1763012159609,2.76150215,102500.0,102490.0,1.82634273]
[1763012160889,2.76150215,102500.0,102490.0,1.81634274]
[1763012161166,2.76150215,102500.0,102490.0,1.82634273]
[1763012161922,2.76150215,102500.0,102490.0,1.81634274]
[1763012162129,2.76150215,102500.0,102490.0,1.82634273]
[1763012163043,2.76150215,102500.0,102490.0,1.81634274]
[1763012164269,2.18494534,102500.0,102490.0,1.81634274]
[1763012164819,1.70302154,102500.0,102490.0,1.83634274]
[1763012165246,0.66416365,102500.0,102490.0,1.69984273]
[1763012165453,0.2465416,102500.0,102490.0,1.80284273]
[1763012165588,0.0022,102530.0,102520.0,0.56150262]
[1763012165787,0.00266659,102530.0,102520.0,1.33865082]
[1763012165991,0.00266659,102530.0,102520.0,1.39636082]
[1763012166200,0.00266659,102530.0,102520.0,0.71641949]
[1763012166516,0.00266659,102530.0,102520.0,1.43565769]
[1763012166882,0.00266659,102530.0,102520.0,1.44565768]
[1763012167121,0.00266659,102530.0,102520.0,1.52016873]
[1763012167458,0.00266659,102530.0,102520.0,1.54016873]
[1763012167874,0.00266659,102530.0,102520.0,1.54416873]
[1763012168089,0.00266659,102530.0,102520.0,1.54616873]
[1763012168249,0.00266659,102530.0,102520.0,1.64397781]
[1763012168444,0.00266659,102530.0,102520.0,1.63197782]
[1763012168670,0.00266659,102530.0,102520.0,1.64197781]
[1763012168831,0.00266659,102530.0,102520.0,1.64597781]
[1763012169650,1e-08,102530.0,102520.0,1.64597781]
[1763012170018,1e-08,102530.0,102520.0,2.39042019]
[1763012170313,1e-08,102530.0,102520.0,2.36521601]
[1763012171296,1e-08,102530.0,102520.0,0.92673961]
[1763012171554,1e-08,102530.0,102520.0,1.09673961]
[1763012172203,1e-08,102530.0,102520.0,0.92673961]
[1763012173288,8e-05,102550.0,102540.0,0.59146455]
[1763012173432,0.00021992,102550.0,102540.0,0.72626363]
[1763012173627,0.0002,102600.0,102580.0,0.19495208]
[1763012173833,0.0002,102600.0,102590.0,0.05615]
[1763012173834,0.00033989,102600.0,102590.0,0.05615]
[1763012174030,0.00033989,102600.0,102590.0,0.11386]
[1763012174228,0.00033989,102600.0,102590.0,0.14314556]
[1763012174427,0.19527166,102600.0,102590.0,0.14314556]
[1763012174985,0.00033989,102600.0,102590.0,0.14314556]
[1763012175842,0.00033989,102600.0,102590.0,0.33809633]
[1763012176304,0.00033989,102600.0,102590.0,1.05733453]
[1763012176510,0.00033989,102600.0,102590.0,0.14314556]
[1763012177667,0.19527166,102600.0,102590.0,0.14314556]
[1763012177883,0.19527166,102600.0,102590.0,0.02928556]
[1763012177884,0.74073836,102600.0,102590.0,0.02928556]
[1763012178094,0.19495848,102590.0,102570.0,0.2309]
[1763012178299,0.409707,102580.0,102570.0,0.2309]
[1763012178706,0.409707,102580.0,102570.0,0.42588878]
[1763012178965,0.409707,102580.0,102570.0,1.01641819]
[1763012179319,0.00122984,102580.0,102570.0,0.29717999]
[1763012179760,0.00122984,102580.0,102570.0,1.01641819]
[1763012179978,0.00122984,102580.0,102570.0,0.29817999]
[1763012180177,0.00122984,102580.0,102570.0,1.01741819]
[1763012180697,0.00122984,102580.0,102570.0,0.29917999]
[1763012180898,0.00122984,102580.0,102570.0,1.21340697]
[1763012182001,0.00122984,102580.0,102570.0,1.25682571]
[1763012182576,0.00122984,102580.0,102570.0,1.57982571]
[1763012183344,0.00122984,102580.0,102570.0,1.57782571]
[1763012183546,0.00122984,102580.0,102570.0,1.57982571]
[1763012183775,0.00122984,102580.0,102570.0,1.58182571]
[1763012184984,0.00122984,102580.0,102570.0,1.43333029]
[1763012186308,0.00122984,102580.0,102570.0,0.86258751]
[1763012186542,0.00122984,102580.0,102570.0,1.43333029]
[1763012189069,0.00122984,102580.0,102570.0,1.28683029]
[1763012191313,0.00122984,102580.0,102570.0,1.31641186]
[1763012191894,0.00122984,102580.0,102570.0,1.31441186]
[1763012192072,0.00122984,102580.0,102570.0,1.31741186]
[1763012192510,0.00122984,102580.0,102570.0,1.31541186]
[1763012192905,0.00122984,102580.0,102570.0,1.28783029]
[1763012193296,0.00122984,102580.0,102570.0,1.31741186]
[1763012193496,1e-08,102580.0,102570.0,1.92815462]
[1763012193721,1e-08,102580.0,102570.0,1.35741184]
[1763012194176,1e-08,102580.0,102570.0,1.32741185]
[1763012194383,1e-08,102580.0,102570.0,1.29783028]
[1763012194544,1e-08,102580.0,102570.0,1.30483027]
[1763012194737,1e-08,102580.0,102570.0,1.35441184]
[1763012194941,1e-08,102580.0,102570.0,1.35741184]
[1763012195136,1e-08,102580.0,102570.0,1.29783028]
[1763012195552,1e-08,102580.0,102570.0,1.29583028]
[1763012195761,1e-08,102580.0,102570.0,0.71808751]
[1763012195961,1e-08,102580.0,102570.0,1.24541155]
[1763012196733,1e-08,102580.0,102570.0,1.28883029]
[1763012196942,1e-08,102580.0,102570.0,1.24241155]
[1763012197281,1e-08,102580.0,102570.0,1.24441155]
[1763012197497,1e-08,102580.0,102570.0,1.28783029]
[1763012198602,1e-08,102580.0,102570.0,1.43433029]
[1763012198853,1e-08,102580.0,102570.0,1.46391186]
[1763012204401,1e-08,102580.0,102570.0,1.47391185]
[1763012204609,1e-08,102580.0,102570.0,1.49391185]
[1763012205017,1e-08,102580.0,102570.0,2.42944657]
[1763012205231,1e-08,102580.0,102570.0,0.92116907]
[1763012205479,1e-08,102580.0,102570.0,2.43044657]
[1763012205683,1e-08,102580.0,102570.0,2.41044657]
[1763012205889,1e-08,102580.0,102570.0,2.43044657]
[1763012206099,1e-08,102580.0,102570.0,2.42744657]
[1763012206308,1.59443209,102640.0,102610.0,0.19491038]
[1763012206519,0.61433175,102630.0,102620.0,0.03635]
[1763012206733,0.42794997,102630.0,102620.0,0.10805]
[1763012206932,0.42794997,102630.0,102620.0,0.18501784]
[1763012207875,0.71870476,102630.0,102620.0,0.02927784]
[1763012208296,0.42794997,102630.0,102620.0,0.07696784]
[1763012208505,0.42794997,102630.0,102620.0,0.14866784]
[1763012208739,0.01824297,102630.0,102620.0,0.14866784]
[1763012208939,0.01824297,102630.0,102620.0,0.34356162]
[1763012209145,0.01824297,102630.0,102620.0,0.91410743]
[1763012209569,0.01824297,102630.0,102620.0,0.94451091]
[1763012209777,0.91017313,102640.0,102630.0,0.19487479]
[1763012210021,0.42841324,102640.0,102630.0,0.35061479]
[1763012210309,0.01870624,102640.0,102630.0,0.35061479]
[1763012210522,0.01870624,102640.0,102630.0,0.9211606]
[1763012210931,0.01870624,102640.0,102630.0,0.35061479]
[1763012211566,0.00046613,102640.0,102630.0,0.9211606]
[1763012212622,0.00046613,102640.0,102630.0,0.35061479]
[1763012212827,0.00046613,102640.0,102630.0,0.9211606]
[1763012213059,0.00194073,102640.0,102630.0,0.9211606]
[1763012213477,0.00194073,102640.0,102630.0,0.35061479]
[1763012213876,0.00194073,102640.0,102630.0,0.9211606]
[1763012214086,0.00194073,102640.0,102630.0,0.9221606]
[1763012214304,0.00194073,102640.0,102630.0,0.35161479]
[1763012214510,0.00194073,102640.0,102630.0,0.9221606]
[1763012214726,0.00194073,102640.0,102630.0,0.35161479]
[1763012214955,0.00194073,102640.0,102630.0,1.28857934]
[1763012217160,0.00194073,102640.0,102630.0,1.2451606]
[1763012217379,0.00194073,102640.0,102630.0,1.28857934]
[1763012217594,0.00194073,102640.0,102630.0,0.71803353]
[1763012217799,0.00194073,102640.0,102630.0,1.28857934]
[1763012218831,0.00194073,102640.0,102630.0,1.28757934]
[1763012219036,0.00194073,102640.0,102630.0,1.28957934]
[1763012219245,0.00194073,102640.0,102630.0,0.71903353]
[1763012219449,0.00194073,102640.0,102630.0,1.28957934]
[1763012220289,0.00194073,102640.0,102630.0,1.05128581]
[1763012220500,0.19679653,102640.0,102630.0,0.08604]
[1763012220946,0.70825353,102640.0,102630.0,0.002]
[1763012221153,0.80606261,102640.0,102630.0,0.002]
[1763012221370,0.82426079,102640.0,102630.0,0.002]
[1763012221785,0.60460078,102620.0,102610.0,0.03663]
[1763012222029,0.19489378,102620.0,102610.0,0.03663]
[1763012222439,0.19489378,102620.0,102610.0,0.08109]
[1763012222873,0.29664378,102620.0,102600.0,0.09776933]
[1763012223078,0.02946,102620.0,102600.0,0.26342046]
[1763012223537,0.409707,102620.0,102610.0,0.3424824]
[1763012223746,0.409707,102620.0,102610.0,0.14757]
[1763012223962,0.409707,102620.0,102610.0,0.91302649]
[1763012224397,0.409707,102630.0,102620.0,0.19489378]
[1763012224655,0.409707,102630.0,102620.0,0.83248959]
[1763012224858,0.409707,102630.0,102620.0,0.87805959]
[1763012225066,0.409707,102630.0,102620.0,0.11262]
[1763012225701,0.19487479,102630.0,102620.0,0.11262]
[1763012225965,0.60460078,102620.0,102610.0,0.02927541]
[1763012226197,0.19546378,102620.0,102600.0,0.39005]
[1763012226438,0.26780378,102620.0,102600.0,0.39005]
[1763012226665,0.26780378,102620.0,102600.0,0.06705]
[1763012226898,0.2301334,102610.0,102590.0,0.33734616]
[1763012227144,0.409707,102610.0,102600.0,0.30755068]
[1763012227372,0.03522,102610.0,102600.0,0.04557]
[1763012227597,0.03522,102610.0,102600.0,0.11262]
[1763012228607,0.03522,102610.0,102600.0,0.30755177]
[1763012228826,0.409707,102610.0,102600.0,0.30755177]
[1763012229241,0.409707,102620.0,102600.0,0.30755177]
[1763012229447,0.409707,102620.0,102610.0,0.03495]
[1763012229649,0.03522,102610.0,102600.0,0.04557]
[1763012229881,0.03522,102610.0,102600.0,0.11262]
[1763012230365,0.03522,102610.0,102600.0,0.30755177]
[1763012230596,0.409707,102610.0,102600.0,0.30755177]
[1763012230852,0.409707,102610.0,102600.0,0.11262]
[1763012231321,0.409707,102610.0,102600.0,0.30755177]
[1763012231748,0.409707,102610.0,102600.0,0.87809758]
[1763012231963,0.409707,102620.0,102610.0,0.19491277]
[1763012232165,0.409707,102620.0,102610.0,0.63759581]
[1763012232371,0.409707,102620.0,102610.0,0.71811581]
[1763012232637,0.409707,102620.0,102600.0,0.02928053]
[1763012232638,0.409707,102610.0,102600.0,0.02928053]
[1763012232812,0.00073752,102610.0,102600.0,0.26198177]
[1763012232972,0.00073752,102610.0,102600.0,0.30755177]
[1763012233578,0.00073752,102610.0,102600.0,0.87809758]
[1763012235044,0.00073752,102610.0,102600.0,0.87909758]
[1763012235247,0.00073752,102610.0,102600.0,1.80192529]
[1763012235420,0.00073752,102610.0,102600.0,1.23137948]
[1763012236013,0.00073752,102610.0,102600.0,1.23037948]
[1763012236212,0.00073752,102610.0,102600.0,1.80092529]
[1763012236417,0.00073752,102610.0,102600.0,1.84434403]
[1763012237501,0.00073752,102610.0,102600.0,1.84634403]
[1763012239715,0.00073752,102610.0,102600.0,1.94904403]
[1763012239959,0.00073752,102610.0,102600.0,1.84634403]
[1763012241730,0.00073752,102610.0,102600.0,0.33883367]